[Event "*** Titled Tuesday Blitz"]
[Site "Chess.com"]
[Date "2021.03.09"]
[Round "9"]
[White "hellokostya"]
[Black "QuintilianoR"]
[Result "1/2-1/2"]
[WhiteElo "2528"]
[BlackElo "2674"]
[TimeControl "180+1"]
[EndTime "11:49:08 PST"]
[Termination "Game drawn by repetition"]

1. d4 {[%clk 0:03:00.9]} 1... Nf6 {[%clk 0:02:59.2]} 2. Bg5 {[%clk 0:02:59.6]}
2... d5 {[%clk 0:02:58.3]} 3. Nd2 {[%clk 0:02:59.2]} 3... Nbd7 {[%clk
0:02:55.6]} 4. e3 {[%clk 0:02:59.4]} 4... e5 {[%clk 0:02:52.7]} 5. Ngf3 {[%clk
0:02:51.5]} 5... e4 {[%clk 0:02:47]} 6. Ne5 {[%clk 0:02:50.9]} 6... Bd6 {[%clk
0:02:46.9]} 7. Nxd7 {[%clk 0:02:50.8]} 7... Bxd7 {[%clk 0:02:47.8]} 8. Be2
{[%clk 0:02:49.7]} 8... O-O {[%clk 0:02:44.1]} 9. c4 {[%clk 0:02:49.5]} 9... c6
{[%clk 0:02:44]} 10. Qb3 {[%clk 0:02:48.4]} 10... Be6 {[%clk 0:02:23.6]} 11. O-O
{[%clk 0:02:40.2]} 11... Rb8 {[%clk 0:02:15.4]} 12. Rac1 {[%clk 0:02:34.3]}
12... h6 {[%clk 0:02:11.7]} 13. Bh4 {[%clk 0:02:33.3]} 13... g5 {[%clk
0:01:58.5]} 14. Bg3 {[%clk 0:02:32.6]} 14... Bxg3 {[%clk 0:01:59]} 15. fxg3
{[%clk 0:02:25.2]} 15... Kg7 {[%clk 0:01:58.4]} 16. Rf2 {[%clk 0:02:12.2]} 16...
Ne8 {[%clk 0:01:55]} 17. Rcf1 {[%clk 0:02:09]} 17... Qd7 {[%clk 0:01:43.4]} 18.
cxd5 {[%clk 0:02:07]} 18... Bxd5 {[%clk 0:01:32.9]} 19. Bc4 {[%clk 0:02:01.5]}
19... Rd8 {[%clk 0:01:23.3]} 20. Rf5 {[%clk 0:01:51.3]} 20... f6 {[%clk
0:01:17.9]} 21. Bxd5 {[%clk 0:01:44]} 21... cxd5 {[%clk 0:01:18.8]} 22. g4
{[%clk 0:01:43.6]} 22... h5 {[%clk 0:01:12.9]} 23. Qb4 {[%clk 0:01:33.7]} 23...
Qd6 {[%clk 0:00:45.9]} 24. Qxd6 {[%clk 0:01:28.9]} 24... Nxd6 {[%clk 0:00:45.6]}
25. Rxd5 {[%clk 0:01:28]} 25... hxg4 {[%clk 0:00:46.5]} 26. Rc1 {[%clk
0:01:24.8]} 26... Rf7 {[%clk 0:00:44.5]} 27. Nxe4 {[%clk 0:01:23.7]} 27... Rfd7
{[%clk 0:00:40]} 28. Nxd6 {[%clk 0:01:21.3]} 28... Rxd6 {[%clk 0:00:40.9]} 29.
Rc7+ {[%clk 0:01:21.6]} 29... Kg6 {[%clk 0:00:41]} 30. Rxd6 {[%clk 0:01:21]}
30... Rxd6 {[%clk 0:00:41.9]} 31. Rxb7 {[%clk 0:01:21.7]} 31... Ra6 {[%clk
0:00:41.6]} 32. a3 {[%clk 0:01:21.6]} 32... f5 {[%clk 0:00:42.5]} 33. Rb3 {[%clk
0:01:04.1]} 33... Rc6 {[%clk 0:00:32.1]} 34. Rc3 {[%clk 0:01:04.1]} 34... Rb6
{[%clk 0:00:32.7]} 35. b3 {[%clk 0:01:04.4]} 35... Kf6 {[%clk 0:00:31.6]} 36.
Kf2 {[%clk 0:01:01.8]} 36... f4 {[%clk 0:00:29.7]} 37. h3 {[%clk 0:00:57.1]}
37... gxh3 {[%clk 0:00:28.5]} 38. gxh3 {[%clk 0:00:57.2]} 38... Kf5 {[%clk
0:00:26.5]} 39. Kf3 {[%clk 0:00:57.2]} 39... fxe3 {[%clk 0:00:25.9]} 40. Kxe3
{[%clk 0:00:57.9]} 40... Re6+ {[%clk 0:00:24.2]} 41. Kf3 {[%clk 0:00:56.9]}
41... Re1 {[%clk 0:00:24.6]} 42. Rc5+ {[%clk 0:00:56]} 42... Kg6 {[%clk
0:00:24.8]} 43. Rc6+ {[%clk 0:00:52.8]} 43... Kh5 {[%clk 0:00:24.6]} 44. Rc7
{[%clk 0:00:51.6]} 44... Rf1+ {[%clk 0:00:22.6]} 45. Kg2 {[%clk 0:00:49.6]}
45... Rb1 {[%clk 0:00:22.4]} 46. b4 {[%clk 0:00:45.2]} 46... Rb2+ {[%clk
0:00:21]} 47. Kf1 {[%clk 0:00:45.1]} 47... Rb3 {[%clk 0:00:20.8]} 48. Rxa7
{[%clk 0:00:44.2]} 48... Kh4 {[%clk 0:00:20.1]} 49. d5 {[%clk 0:00:36.4]} 49...
Kxh3 {[%clk 0:00:19]} 50. d6 {[%clk 0:00:34.7]} 50... Rd3 {[%clk 0:00:18.9]} 51.
d7 {[%clk 0:00:30.4]} 51... g4 {[%clk 0:00:18.9]} 52. Ke2 {[%clk 0:00:30.4]}
52... Rd6 {[%clk 0:00:18.6]} 53. b5 {[%clk 0:00:15]} 53... g3 {[%clk 0:00:17.6]}
54. Ra6 {[%clk 0:00:15.9]} 54... Rxd7 {[%clk 0:00:17]} 55. Rh6+ {[%clk
0:00:16.2]} 55... Kg2 {[%clk 0:00:17.2]} 56. a4 {[%clk 0:00:15.8]} 56... Re7+
{[%clk 0:00:14.8]} 57. Kd3 {[%clk 0:00:15.8]} 57... Kf3 {[%clk 0:00:15.1]} 58.
Rf6+ {[%clk 0:00:15.4]} 58... Kg4 {[%clk 0:00:15.6]} 59. Rg6+ {[%clk 0:00:15.7]}
59... Kf4 {[%clk 0:00:15.7]} 60. Kc4 {[%clk 0:00:15]} 60... Re4+ {[%clk
0:00:15.4]} 61. Kc5 {[%clk 0:00:12.9]} 61... Re5+ {[%clk 0:00:16]} 62. Kc6
{[%clk 0:00:12.2]} 62... Rg5 {[%clk 0:00:16.9]} 63. Rf6+ {[%clk 0:00:12.5]}
63... Ke5 {[%clk 0:00:16.7]} 64. Rf1 {[%clk 0:00:12.2]} 64... g2 {[%clk
0:00:17.2]} 65. Rg1 {[%clk 0:00:12.7]} 65... Rg6+ {[%clk 0:00:18.1]} 66. Kb7
{[%clk 0:00:12.5]} 66... Kd5 {[%clk 0:00:18.5]} 67. a5 {[%clk 0:00:11]} 67...
Kc5 {[%clk 0:00:18.4]} 68. b6 {[%clk 0:00:11.4]} 68... Kb5 {[%clk 0:00:18.6]}
69. Ra1 {[%clk 0:00:09.9]} 69... Rg7+ {[%clk 0:00:18.3]} 70. Kb8 {[%clk
0:00:09.5]} 70... Ka6 {[%clk 0:00:18.4]} 71. Rg1 {[%clk 0:00:07.8]} 71... Kxa5
{[%clk 0:00:18.2]} 72. b7 {[%clk 0:00:08]} 72... Kb6 {[%clk 0:00:18.6]} 73. Rb1+
{[%clk 0:00:08.2]} 73... Kc6 {[%clk 0:00:19.2]} 74. Rc1+ {[%clk 0:00:08.3]}
74... Kb6 {[%clk 0:00:19.7]} 75. Rb1+ {[%clk 0:00:08.8]} 75... Kc6 {[%clk
0:00:20]} 76. Rc1+ {[%clk 0:00:09.1]} 76... Kb6 {[%clk 0:00:20.6]} 77. Rb1+
{[%clk 0:00:09.6]} 1/2-1/2

[Event "*** Titled Tuesday Blitz"]
[Site "Chess.com"]
[Date "2021.03.09"]
[Round "9"]
[White "ChampStan"]
[Black "Koalaskakistis"]
[Result "1-0"]
[WhiteElo "2055"]
[BlackElo "2516"]
[TimeControl "180+1"]
[EndTime "11:49:08 PST"]
[Termination "ChampStan won by checkmate"]

1. d4 {[%clk 0:03:00.9]} 1... d5 {[%clk 0:02:59.3]} 2. c4 {[%clk 0:03:00.3]}
2... e6 {[%clk 0:02:59.3]} 3. Nc3 {[%clk 0:03:00]} 3... Nf6 {[%clk 0:02:58.3]}
4. cxd5 {[%clk 0:02:58.9]} 4... exd5 {[%clk 0:02:58]} 5. Bg5 {[%clk 0:02:57.3]}
5... Be7 {[%clk 0:02:57.9]} 6. e3 {[%clk 0:02:57.3]} 6... O-O {[%clk 0:02:57.1]}
7. Bd3 {[%clk 0:02:57]} 7... c6 {[%clk 0:02:56.6]} 8. Qc2 {[%clk 0:02:56.7]}
8... Nbd7 {[%clk 0:02:55.6]} 9. Nf3 {[%clk 0:02:55]} 9... Re8 {[%clk 0:02:55.2]}
10. O-O {[%clk 0:02:54.2]} 10... Nf8 {[%clk 0:02:54.9]} 11. h3 {[%clk
0:02:53.8]} 11... g6 {[%clk 0:02:50.5]} 12. Ne5 {[%clk 0:02:50.1]} 12... N6d7
{[%clk 0:02:45.6]} 13. Bxe7 {[%clk 0:02:30]} 13... Qxe7 {[%clk 0:02:43.5]} 14.
Nxd7 {[%clk 0:02:30.9]} 14... Nxd7 {[%clk 0:02:42.6]} 15. Rae1 {[%clk
0:02:29.6]} 15... Nf6 {[%clk 0:02:33.5]} 16. f3 {[%clk 0:02:28.1]} 16... Be6
{[%clk 0:02:29.5]} 17. Qf2 {[%clk 0:02:24.2]} 17... Rad8 {[%clk 0:02:28.1]} 18.
Bb1 {[%clk 0:02:05.2]} 18... Kg7 {[%clk 0:02:24.7]} 19. Ne2 {[%clk 0:01:51.1]}
19... b6 {[%clk 0:02:11]} 20. Nf4 {[%clk 0:01:20.1]} 20... c5 {[%clk 0:02:10.1]}
21. dxc5 {[%clk 0:01:16]} 21... bxc5 {[%clk 0:02:11]} 22. Qh4 {[%clk 0:01:05.8]}
22... Nd7 {[%clk 0:02:02.9]} 23. Qg3 {[%clk 0:01:01.5]} 23... h6 {[%clk
0:01:49]} 24. h4 {[%clk 0:00:40.2]} 24... Nf6 {[%clk 0:01:35.1]} 25. e4 {[%clk
0:00:33.8]} 25... d4 {[%clk 0:01:28.9]} 26. b3 {[%clk 0:00:30.1]} 26... c4
{[%clk 0:01:17]} 27. bxc4 {[%clk 0:00:25.5]} 27... Bxc4 {[%clk 0:01:16.5]} 28.
Bd3 {[%clk 0:00:24.9]} 28... Bxd3 {[%clk 0:01:11.6]} 29. Nxd3 {[%clk 0:00:23.3]}
29... Rc8 {[%clk 0:00:58.4]} 30. Qf2 {[%clk 0:00:20.5]} 30... Red8 {[%clk
0:00:48.3]} 31. e5 {[%clk 0:00:19.8]} 31... Ne8 {[%clk 0:00:44.3]} 32. e6 {[%clk
0:00:19.6]} 32... fxe6 {[%clk 0:00:43.2]} 33. Re4 {[%clk 0:00:19.1]} 33... Rc3
{[%clk 0:00:34.8]} 34. Rxd4 {[%clk 0:00:18.4]} 34... Rxd3 {[%clk 0:00:34.3]} 35.
Re4 {[%clk 0:00:06.8]} 35... Rd2 {[%clk 0:00:32]} 36. Qg3 {[%clk 0:00:06.7]}
36... Nf6 {[%clk 0:00:31.6]} 37. Re5 {[%clk 0:00:05.3]} 37... Rxa2 {[%clk
0:00:27.8]} 38. Rfe1 {[%clk 0:00:05]} 38... Rdd2 {[%clk 0:00:27.8]} 39. Rxe6
{[%clk 0:00:04]} 39... Rxg2+ {[%clk 0:00:28]} 40. Qxg2 {[%clk 0:00:04]} 40...
Rxg2+ {[%clk 0:00:28]} 41. Kxg2 {[%clk 0:00:04.9]} 41... Qd7 {[%clk 0:00:27.2]}
42. Re7+ {[%clk 0:00:05.2]} 42... Qxe7 {[%clk 0:00:24.4]} 43. Rxe7+ {[%clk
0:00:05.7]} 43... Kf8 {[%clk 0:00:24.3]} 44. Rxa7 {[%clk 0:00:06.6]} 44... Nh5
{[%clk 0:00:24.3]} 45. Ra6 {[%clk 0:00:05.8]} 45... Kf7 {[%clk 0:00:25.2]} 46.
Ra7+ {[%clk 0:00:05.5]} 46... Kf6 {[%clk 0:00:26.1]} 47. Ra4 {[%clk 0:00:06.3]}
47... Kf5 {[%clk 0:00:27]} 48. Kf2 {[%clk 0:00:06.4]} 48... Nf4 {[%clk 0:00:27]}
49. Ra5+ {[%clk 0:00:06.1]} 49... Kf6 {[%clk 0:00:26.4]} 50. Kg3 {[%clk
0:00:06.6]} 50... Nh5+ {[%clk 0:00:26.3]} 51. Kg4 {[%clk 0:00:06.5]} 51... Kg7
{[%clk 0:00:26.1]} 52. Ra7+ {[%clk 0:00:06.4]} 52... Kf6 {[%clk 0:00:27]} 53.
Ra6+ {[%clk 0:00:06.7]} 53... Kg7 {[%clk 0:00:27.3]} 54. f4 {[%clk 0:00:07.2]}
54... Nf6+ {[%clk 0:00:27]} 55. Kf3 {[%clk 0:00:07.7]} 55... Ng8 {[%clk
0:00:25.4]} 56. Ke4 {[%clk 0:00:07.3]} 56... Ne7 {[%clk 0:00:25.4]} 57. Ra7
{[%clk 0:00:07]} 57... Kf6 {[%clk 0:00:25.1]} 58. Ra6+ {[%clk 0:00:05.8]} 58...
Kf7 {[%clk 0:00:25.2]} 59. Ke5 {[%clk 0:00:06.1]} 59... h5 {[%clk 0:00:24.9]}
60. Ra7 {[%clk 0:00:06]} 60... Kf8 {[%clk 0:00:20.7]} 61. Kf6 {[%clk 0:00:05.3]}
61... Nf5 {[%clk 0:00:20.8]} 62. Ra8# {[%clk 0:00:04.9]} 1-0

[Event "*** Titled Tuesday Blitz"]
[Site "Chess.com"]
[Date "2021.03.09"]
[Round "9"]
[White "night_player"]
[Black "suyu28"]
[Result "0-1"]
[WhiteElo "2168"]
[BlackElo "2581"]
[TimeControl "180+1"]
[EndTime "11:49:19 PST"]
[Termination "suyu28 won by checkmate"]

1. e4 {[%clk 0:03:00.9]} 1... e5 {[%clk 0:02:58.6]} 2. Nf3 {[%clk 0:02:58.7]}
2... Nc6 {[%clk 0:02:58.4]} 3. Bb5 {[%clk 0:02:57]} 3... Nf6 {[%clk 0:02:49.3]}
4. Bxc6 {[%clk 0:02:51.8]} 4... dxc6 {[%clk 0:02:45.4]} 5. d3 {[%clk 0:02:50]}
5... Bg4 {[%clk 0:02:34.6]} 6. O-O {[%clk 0:02:47.7]} 6... Bd6 {[%clk
0:02:32.6]} 7. Be3 {[%clk 0:02:47.4]} 7... O-O {[%clk 0:02:29.9]} 8. Nbd2 {[%clk
0:02:47.4]} 8... Re8 {[%clk 0:02:23.4]} 9. c3 {[%clk 0:02:44.5]} 9... Qd7 {[%clk
0:02:23.7]} 10. d4 {[%clk 0:02:23.6]} 10... exd4 {[%clk 0:02:10.5]} 11. Bxd4
{[%clk 0:02:13]} 11... Nxe4 {[%clk 0:02:10.3]} 12. Qb3 {[%clk 0:01:58.8]} 12...
b6 {[%clk 0:01:55.2]} 13. Rfe1 {[%clk 0:01:34.2]} 13... Nc5 {[%clk 0:01:29.7]}
14. Qc2 {[%clk 0:01:23.7]} 14... Bh5 {[%clk 0:01:13]} 15. Ne5 {[%clk 0:01:17.2]}
15... Bxe5 {[%clk 0:01:00.8]} 16. Rxe5 {[%clk 0:01:15.5]} 16... Bg6 {[%clk
0:00:58.9]} 17. Qd1 {[%clk 0:01:11.6]} 17... Qd6 {[%clk 0:00:50.6]} 18. Rxe8+
{[%clk 0:01:07.9]} 18... Rxe8 {[%clk 0:00:50.2]} 19. Nf3 {[%clk 0:01:04.9]}
19... Nd3 {[%clk 0:00:47.5]} 20. Qd2 {[%clk 0:01:01.5]} 20... c5 {[%clk
0:00:46.3]} 21. Be3 {[%clk 0:01:01.5]} 21... c4 {[%clk 0:00:39.9]} 22. h3 {[%clk
0:01:01.2]} 22... Be4 {[%clk 0:00:35.2]} 23. Nd4 {[%clk 0:00:59.9]} 23... c5
{[%clk 0:00:26.8]} 24. Ne2 {[%clk 0:00:37.1]} 24... Qc6 {[%clk 0:00:19.1]} 25.
f3 {[%clk 0:00:28.6]} 25... Bxf3 {[%clk 0:00:19.5]} 26. Nf4 {[%clk 0:00:20.5]}
26... Be4 {[%clk 0:00:18.1]} 27. Rf1 {[%clk 0:00:16.1]} 27... h6 {[%clk
0:00:06.8]} 28. Re1 {[%clk 0:00:13.7]} 28... Rd8 {[%clk 0:00:03.3]} 29. Qe2
{[%clk 0:00:12.6]} 29... f5 {[%clk 0:00:02.3]} 30. Nh5 {[%clk 0:00:11.3]} 30...
Qg6 {[%clk 0:00:01.8]} 31. Nf4 {[%clk 0:00:09.3]} 31... Qf7 {[%clk 0:00:02.3]}
32. Rf1 {[%clk 0:00:04.3]} 32... g5 {[%clk 0:00:02.6]} 33. Nxd3 {[%clk
0:00:03.2]} 33... Bxd3 {[%clk 0:00:02]} 34. Qd2 {[%clk 0:00:03.3]} 34... Qe6
{[%clk 0:00:02.3]} 35. Re1 {[%clk 0:00:03]} 35... Re8 {[%clk 0:00:02.7]} 36. Qf2
{[%clk 0:00:03.4]} 36... Qg6 {[%clk 0:00:02.6]} 37. Bd2 {[%clk 0:00:03.7]} 37...
Re4 {[%clk 0:00:02.9]} 38. Rxe4 {[%clk 0:00:03.5]} 38... fxe4 {[%clk 0:00:03.8]}
39. Be3 {[%clk 0:00:04.4]} 39... Qf7 {[%clk 0:00:04.3]} 40. Qe1 {[%clk
0:00:04.6]} 40... Qe6 {[%clk 0:00:04.7]} 41. Qf2 {[%clk 0:00:05.5]} 41... Qf7
{[%clk 0:00:04.8]} 42. Qe1 {[%clk 0:00:06.4]} 42... Qf5 {[%clk 0:00:05.1]} 43.
Qf2 {[%clk 0:00:07.3]} 43... Qe6 {[%clk 0:00:05.2]} 44. Qe1 {[%clk 0:00:07.5]}
44... Kg7 {[%clk 0:00:05.8]} 45. Qf2 {[%clk 0:00:08.4]} 45... Kg6 {[%clk
0:00:06.5]} 46. g3 {[%clk 0:00:08.1]} 46... Qe7 {[%clk 0:00:06.9]} 47. Kg2
{[%clk 0:00:08.6]} 47... Qe6 {[%clk 0:00:07.4]} 48. Qe1 {[%clk 0:00:08.3]} 48...
Qf5 {[%clk 0:00:07.4]} 49. Qf2 {[%clk 0:00:08.7]} 49... Qe6 {[%clk 0:00:08.1]}
50. Qe1 {[%clk 0:00:08.7]} 50... Bc2 {[%clk 0:00:08.1]} 51. Qf2 {[%clk
0:00:08.6]} 51... Bb1 {[%clk 0:00:08.6]} 52. a3 {[%clk 0:00:08.5]} 52... Ba2
{[%clk 0:00:09]} 53. Qe1 {[%clk 0:00:07.7]} 53... Bb3 {[%clk 0:00:09.3]} 54. Qf2
{[%clk 0:00:07.8]} 54... Bd1 {[%clk 0:00:09.5]} 55. Qe1 {[%clk 0:00:07.7]} 55...
Bf3+ {[%clk 0:00:10.4]} 56. Kh2 {[%clk 0:00:07.8]} 56... h5 {[%clk 0:00:10.7]}
57. Qd2 {[%clk 0:00:08.7]} 57... h4 {[%clk 0:00:10.6]} 58. Bxg5 {[%clk
0:00:08.9]} 58... hxg3+ {[%clk 0:00:09.9]} 59. Kxg3 {[%clk 0:00:09.8]} 59...
Qe5+ {[%clk 0:00:10]} 60. Bf4 {[%clk 0:00:08.6]} 60... Qg7 {[%clk 0:00:09.7]}
61. Kh2 {[%clk 0:00:08.1]} 61... Kf5 {[%clk 0:00:09.6]} 62. Bg3 {[%clk
0:00:07.3]} 62... Qe7 {[%clk 0:00:09.6]} 63. Qf4+ {[%clk 0:00:07.5]} 63... Kg6
{[%clk 0:00:09.7]} 64. Qe3 {[%clk 0:00:06.6]} 64... Qe6 {[%clk 0:00:09.7]} 65.
Qf4 {[%clk 0:00:06]} 65... Qd7 {[%clk 0:00:09.7]} 66. Qe3 {[%clk 0:00:05.6]}
66... Qd1 {[%clk 0:00:09.8]} 67. Qf2 {[%clk 0:00:05.9]} 67... Qh1# {[%clk
0:00:05.3]} 0-1

[Event "*** Titled Tuesday Blitz"]
[Site "Chess.com"]
[Date "2021.03.09"]
[Round "9"]
[White "Gerodot71"]
[Black "Bigfish1995"]
[Result "0-1"]
[WhiteElo "2583"]
[BlackElo "3062"]
[TimeControl "180+1"]
[EndTime "11:49:24 PST"]
[Termination "Bigfish1995 won on time"]

1. d4 {[%clk 0:03:00.9]} 1... e6 {[%clk 0:02:49.9]} 2. c4 {[%clk 0:03:00.2]}
2... f5 {[%clk 0:02:49.7]} 3. Nf3 {[%clk 0:02:58.3]} 3... Nf6 {[%clk 0:02:49.7]}
4. g3 {[%clk 0:02:58.2]} 4... c6 {[%clk 0:02:44.9]} 5. Bg2 {[%clk 0:02:58]} 5...
Be7 {[%clk 0:02:44.4]} 6. O-O {[%clk 0:02:56.8]} 6... O-O {[%clk 0:02:45]} 7.
Nc3 {[%clk 0:02:43.6]} 7... d5 {[%clk 0:02:43.1]} 8. b3 {[%clk 0:02:40]} 8...
Ne4 {[%clk 0:02:36.5]} 9. Bb2 {[%clk 0:02:39.7]} 9... Bd7 {[%clk 0:02:35.5]} 10.
e3 {[%clk 0:02:32.2]} 10... Be8 {[%clk 0:02:34.8]} 11. Ne2 {[%clk 0:02:32.5]}
11... Nd7 {[%clk 0:02:30]} 12. Nf4 {[%clk 0:02:29.8]} 12... Bf7 {[%clk
0:02:30.3]} 13. Nd3 {[%clk 0:02:29]} 13... Qe8 {[%clk 0:02:21.2]} 14. Qc2 {[%clk
0:02:27.1]} 14... Bh5 {[%clk 0:02:14]} 15. Nf4 {[%clk 0:02:15.7]} 15... Bd6
{[%clk 0:02:14]} 16. Nd2 {[%clk 0:02:02.8]} 16... Bf7 {[%clk 0:02:10.5]} 17.
Rae1 {[%clk 0:01:55.6]} 17... Nxd2 {[%clk 0:02:08]} 18. Qxd2 {[%clk 0:01:54.7]}
18... dxc4 {[%clk 0:02:08.5]} 19. bxc4 {[%clk 0:01:53.7]} 19... e5 {[%clk
0:02:08.7]} 20. dxe5 {[%clk 0:01:52.8]} 20... Bxe5 {[%clk 0:02:09.1]} 21. Rc1
{[%clk 0:01:47.7]} 21... Rd8 {[%clk 0:02:02.1]} 22. Qb4 {[%clk 0:01:40.3]} 22...
Bxb2 {[%clk 0:01:49.5]} 23. Qxb2 {[%clk 0:01:39.5]} 23... Nc5 {[%clk 0:01:49.4]}
24. Rfd1 {[%clk 0:01:37.4]} 24... Qe7 {[%clk 0:01:49.3]} 25. Qa3 {[%clk
0:01:22.3]} 25... Rxd1+ {[%clk 0:01:41]} 26. Rxd1 {[%clk 0:01:21.5]} 26... g5
{[%clk 0:01:37.6]} 27. Nd3 {[%clk 0:00:44.5]} 27... Rd8 {[%clk 0:01:32.4]} 28.
Bf3 {[%clk 0:00:44]} 28... b6 {[%clk 0:00:42]} 29. Nxc5 {[%clk 0:00:43.4]} 29...
Rxd1+ {[%clk 0:00:41.5]} 30. Bxd1 {[%clk 0:00:44.3]} 30... g4 {[%clk 0:00:35.1]}
31. e4 {[%clk 0:00:23]} 31... bxc5 {[%clk 0:00:31.7]} 32. Qd3 {[%clk 0:00:19.4]}
32... Qxe4 {[%clk 0:00:28]} 33. Qxe4 {[%clk 0:00:18.9]} 33... fxe4 {[%clk
0:00:27.6]} 34. Be2 {[%clk 0:00:17.8]} 34... Be6 {[%clk 0:00:27.2]} 35. Kf1
{[%clk 0:00:17.5]} 35... Kg7 {[%clk 0:00:19.1]} 36. Ke1 {[%clk 0:00:17.5]} 36...
Kf6 {[%clk 0:00:20]} 37. Kd2 {[%clk 0:00:17.6]} 37... Ke5 {[%clk 0:00:20.9]} 38.
Ke3 {[%clk 0:00:16.4]} 38... h5 {[%clk 0:00:21.8]} 39. Bf1 {[%clk 0:00:15.9]}
39... Bf5 {[%clk 0:00:13.2]} 40. Be2 {[%clk 0:00:15.4]} 40... Bg6 {[%clk
0:00:14.1]} 41. a3 {[%clk 0:00:13.8]} 41... Bf7 {[%clk 0:00:14.4]} 42. Bf1
{[%clk 0:00:13.5]} 42... Be6 {[%clk 0:00:14.7]} 43. Be2 {[%clk 0:00:13.5]} 43...
Kf5 {[%clk 0:00:15.3]} 44. Bf1 {[%clk 0:00:13.2]} 44... Bf7 {[%clk 0:00:15.1]}
45. Be2 {[%clk 0:00:13.1]} 45... Bg6 {[%clk 0:00:15.6]} 46. Bf1 {[%clk
0:00:12.7]} 46... Ke5 {[%clk 0:00:12.6]} 47. Be2 {[%clk 0:00:11.9]} 47... Kd6
{[%clk 0:00:05.5]} 48. Kf4 {[%clk 0:00:11.2]} 48... Ke6 {[%clk 0:00:05.9]} 49.
Bf1 {[%clk 0:00:08.1]} 49... Kf6 {[%clk 0:00:06]} 50. Be2 {[%clk 0:00:07.1]}
50... a5 {[%clk 0:00:04.9]} 51. Bf1 {[%clk 0:00:06.2]} 51... Ke6 {[%clk
0:00:03.1]} 52. Be2 {[%clk 0:00:06]} 52... Kf6 {[%clk 0:00:03.6]} 53. Bf1 {[%clk
0:00:05.8]} 53... Bf5 {[%clk 0:00:04]} 54. Be2 {[%clk 0:00:03.8]} 54... e3
{[%clk 0:00:03.7]} 55. fxe3 {[%clk 0:00:02.4]} 55... Bb1 {[%clk 0:00:04.6]} 56.
e4 {[%clk 0:00:02.7]} 56... Bc2 {[%clk 0:00:05.5]} 57. e5+ {[%clk 0:00:02]}
57... Ke6 {[%clk 0:00:06.4]} 58. Bf1 {[%clk 0:00:02.1]} 58... Bb1 {[%clk
0:00:07.3]} 59. Be2 {[%clk 0:00:01.2]} 59... Bc2 {[%clk 0:00:07.6]} 60. Bf1
{[%clk 0:00:02.1]} 60... Bd1 {[%clk 0:00:08.2]} 61. Bg2 {[%clk 0:00:01.9]} 61...
Be2 {[%clk 0:00:08]} 62. Be4 {[%clk 0:00:01.8]} 62... Bxc4 {[%clk 0:00:08.2]}
63. Bxc6 {[%clk 0:00:01.8]} 63... Be2 {[%clk 0:00:07.3]} 0-1